fUST/lending_fUST_20240825
["ID","MTS","AMOUNT","RATE_DAILY","PERIOD"]
[335849220,1724531492517,-3000.0,0.0001602,2]
[335849221,1724531492527,-3000.0,0.0001603,2]
[335849222,1724531492537,-3000.0,0.0001604,2]
[335849223,1724531492547,-3000.0,0.0001605,2]
[335849224,1724531492556,-3000.0,0.0001606,2]
[335849225,1724531492567,-3000.0,0.0001607,2]
[335849226,1724531492576,-3000.0,0.0001608,2]
[335849227,1724531492586,-3000.0,0.0001609,2]
[335849228,1724531492595,-3000.0,0.000161,2]
[335849229,1724531492606,-3000.0,0.0001611,2]
[335849230,1724531492615,-3000.0,0.0001612,2]
[335849231,1724531492625,-3000.0,0.0001613,2]
[335849232,1724531492636,-3000.0,0.0001614,2]
[335849233,1724531492646,-3000.0,0.0001615,2]
[335849234,1724531492656,-3000.0,0.0001616,2]
[335849235,1724531492666,-813.56,0.00016164,2]
[335849236,1724531492676,-500.0,0.00016164,2]
[335849237,1724531492686,-500.0,0.00016164,2]
[335849238,1724531492696,-734.4,0.00016164,2]
[335849239,1724531492706,-603.04,0.00016164,2]
[335849240,1724531492716,-622.05,0.00016164,2]
[335849241,1724531492725,-500.0,0.00016164,2]
[335849242,1724531492736,-500.0,0.00016164,2]
[335849243,1724531492745,-500.0,0.00016164,2]
[335849244,1724531492756,-500.0,0.00016164,2]
[335849245,1724531492766,-519.65,0.00016164,2]
[335849246,1724531492776,-713.04,0.00016164,2]
[335849247,1724531492785,-500.0,0.00016164,2]
[335849248,1724531492795,-530.24,0.00016164,2]
[335849249,1724531492805,-602.6,0.00016164,2]
[335849250,1724531492815,-500.0,0.00016164,2]
[335849251,1724531492824,-784.11,0.00016164,2]
[335849252,1724531492834,-500.0,0.00016164,2]
[335849253,1724531492844,-500.0,0.00016164,2]
[335849254,1724531492854,-267.22901691,0.00016164,2]
[335849255,1724531492864,-500.0,0.00016164,2]
[335849256,1724531492874,-500.0,0.00016164,2]
[335849257,1724531492883,-525.32974943,0.00016164,2]
[335849258,1724531492893,-500.0,0.00016164,2]
[335849259,1724531492903,-563.59,0.00016164,2]
[335849260,1724531492912,-891.68,0.00016164,2]
[335849261,1724531492921,-805.77,0.00016164,2]
[335849262,1724531492931,-569.79,0.00016164,2]
[335849263,1724531492940,-523.9,0.00016164,2]
[335849264,1724531492950,-562.45,0.00016164,2]
[335849265,1724531492962,-962.65,0.00016164,2]
[335849266,1724531492971,-559.36,0.00016164,2]
[335849267,1724531492981,-545.54392267,0.00016164,2]
[335849268,1724531492990,-586.18,0.00016164,2]
[335849269,1724531492999,-807.15,0.00016164,2]
[335849270,1724531493009,-583.94,0.00016164,2]
[335849271,1724531493019,-533.88,0.00016164,2]
[335849272,1724531493028,-760.25,0.00016164,2]
[335849273,1724531493039,-583.15,0.00016164,2]
[335849274,1724531493052,-863.95,0.00016164,2]
[335849275,1724531493062,-520.2,0.00016164,2]
[335849276,1724531493073,-332.64456228,0.00016164,2]
[335849277,1724531493083,-500.0,0.00016164,2]
[335849278,1724531493092,-850.08,0.00016164,2]
[335849279,1724531493103,-1365.0,0.00016164,2]
[335849280,1724531493114,-752.47,0.00016164,2]
[335849281,1724531493243,-500.0,0.00016164,2]
[335849282,1724531493254,-500.0,0.00016164,2]
[335849283,1724531493263,-1109.59,0.00016164,2]
[335849284,1724531493273,-500.0,0.00016164,2]
[335849285,1724531493282,-706.93,0.00016164,2]
[335849286,1724531493292,-500.0,0.00016164,2]
[335849287,1724531493301,-576.76,0.00016164,2]
[335849288,1724531493311,-823.53,0.00016164,2]
[335849289,1724531493320,-500.0,0.00016164,2]
[335849290,1724531493330,-500.0,0.00016164,2]
[335849291,1724531493340,-500.0,0.00016164,2]
[335849292,1724531493350,-526.81,0.00016164,2]
[335849293,1724531493360,-500.0,0.00016164,2]
[335849294,1724531493370,-500.0,0.00016164,2]
[335849295,1724531493379,-500.0,0.00016164,2]
[335849296,1724531493390,-500.0,0.00016164,2]
[335849297,1724531493399,-677.32,0.00016164,2]
[335849298,1724531493410,-500.0,0.00016164,2]
[335849299,1724531493419,-500.0,0.00016164,2]
[335849300,1724531493428,-500.0,0.00016164,2]
[335849301,1724531493438,-929.47,0.00016164,2]
[335849302,1724531493448,-500.0,0.00016164,2]
[335849303,1724531493458,-748.15,0.00016164,2]
[335849304,1724531493468,-534.28,0.00016164,2]
[335849305,1724531493479,-500.0,0.00016164,2]
[335849306,1724531493488,-500.0,0.00016164,2]
[335849307,1724531493498,-774.94,0.00016164,2]
[335849308,1724531493508,-1168.85,0.00016164,2]
[335849309,1724531493518,-500.0,0.00016164,2]
[335849310,1724531493528,-500.0,0.00016164,2]
[335849311,1724531493538,-500.0,0.00016164,2]
[335849312,1724531493548,-1085.43,0.00016164,2]
[335849313,1724531493558,-1002.47,0.00016164,2]
[335849314,1724531493568,-639.11,0.00016164,2]
[335849315,1724531493578,-500.0,0.00016164,2]
[335849316,1724531493588,-761.14,0.00016164,2]
[335849317,1724531493598,-926.86,0.00016164,2]
[335849318,1724531493608,-500.0,0.00016164,2]
[335849319,1724531493618,-526.71,0.00016164,2]
[335849320,1724531493627,-744.22,0.00016164,2]
[335849321,1724531493637,-500.0,0.00016164,2]
[335849322,1724531493647,-631.93,0.00016164,2]
[335849323,1724531493657,-2112.1,0.00016164,2]
[335849324,1724531493667,-592.66,0.00016164,2]
[335849325,1724531493678,-884.46,0.00016164,2]
[335849326,1724531493687,-500.0,0.00016164,2]
[335849327,1724531493697,-500.0,0.00016164,2]
[335849328,1724531493707,-2931.13,0.00016164,2]
[335849329,1724531493718,-1078.65,0.00016164,2]
[335849330,1724531493728,-500.0,0.00016164,2]
[335849331,1724531493739,-500.0,0.00016164,2]
[335849332,1724531493749,-500.0,0.00016164,2]
[335849333,1724531493759,-618.62,0.00016164,2]
[335849334,1724531493769,-816.32,0.00016164,2]
[335849335,1724531493779,-800.21,0.00016164,2]
[335849336,1724531493789,-781.63,0.00016164,2]
[335849337,1724531493798,-500.0,0.00016164,2]
[335849338,1724531493808,-1221.12,0.00016164,2]
[335849339,1724531493819,-646.32,0.00016164,2]
[335849340,1724531493829,-500.0,0.00016164,2]
[335849341,1724531493839,-2043.72,0.00016164,2]
[335849342,1724531493850,-500.0,0.00016164,2]
[335849343,1724531493859,-1010.23,0.00016164,2]
[335849344,1724531493869,-500.0,0.00016164,2]
[335849345,1724531493879,-766.22,0.00016164,2]
[335849346,1724531493889,-500.0,0.00016164,2]
[335849347,1724531493899,-799.71,0.00016164,2]
[335849348,1724531493909,-502.44,0.00016164,2]
[335849349,1724531493918,-500.13,0.00016164,2]
[335849350,1724531493928,-578.8,0.00016164,2]
[335849351,1724531493938,-500.0,0.00016164,2]
[335849352,1724531493948,-500.0,0.00016164,2]
[335849353,1724531493958,-594.16,0.00016164,2]
[335849354,1724531493968,-1288.02,0.00016164,2]
[335849355,1724531493978,-969.48,0.00016164,2]
[335849356,1724531493988,-500.0,0.00016164,2]
[335849357,1724531493998,-1368.37,0.00016164,2]
[335849358,1724531494008,-500.0,0.00016164,2]
[335849359,1724531494017,-1302.49,0.00016164,2]
[335849360,1724531494027,-500.0,0.00016164,2]
[335849361,1724531494037,-500.0,0.00016164,2]
[335849362,1724531494051,-500.0,0.00016164,2]
[335849363,1724531494061,-675.1,0.00016164,2]
[335849364,1724531494071,-500.0,0.00016164,2]
[335849365,1724531494083,-500.0,0.00016164,2]
[335849366,1724531494107,-872.09,0.00016164,2]
[335849367,1724531494126,-852.86,0.00016164,2]
[335849368,1724531494149,-500.0,0.00016164,2]
[335849369,1724531494170,-1320.03,0.00016164,2]
[335849370,1724531494190,-2614.24,0.00016164,2]
[335849371,1724531494210,-500.0,0.00016164,2]
[335849372,1724531494225,-1263.51,0.00016164,2]
[335849373,1724531494243,-1424.95,0.00016164,2]
[335849374,1724531494261,-2728.43,0.00016164,2]
[335849375,1724531494284,-1292.45,0.00016164,2]
[335849376,1724531494299,-507.92,0.00016164,2]
[335849377,1724531494317,-688.45,0.00016164,2]
[335849378,1724531494334,-500.0,0.00016164,2]
[335849379,1724531494352,-1410.25,0.00016164,2]
[335849380,1724531494367,-754.58,0.00016164,2]
[335849381,1724531494382,-2375.92,0.00016164,2]
[335849382,1724531494396,-500.0,0.00016164,2]
[335849383,1724531494412,-1921.55,0.00016164,2]
[335849384,1724531494426,-980.6,0.00016164,2]
[335849385,1724531494444,-500.0,0.00016164,2]
[335849386,1724531494460,-500.0,0.00016164,2]
[335849387,1724531494476,-500.0,0.00016164,2]
[335849388,1724531494490,-999.26,0.00016164,2]
[335849389,1724531494505,-1062.09,0.00016164,2]
[335849390,1724531494520,-637.81,0.00016164,2]
[335849391,1724531494535,-1225.13,0.00016164,2]
[335849392,1724531494550,-566.87662545,0.00016164,2]
[335849393,1724531494565,-800.8,0.00016164,2]
[335849394,1724531494580,-500.0,0.00016164,2]
[335849395,1724531494595,-1128.59,0.00016164,2]
[335849396,1724531494610,-819.98,0.00016164,2]
[335849397,1724531494625,-155.2105549,0.00016164,2]
[335849398,1724531494640,-548.82,0.00016164,2]
[335849399,1724531494656,-500.0,0.00016164,2]
[335849400,1724531494670,-1327.62,0.00016164,2]
[335849401,1724531494687,-1212.1,0.00016164,2]
[335849402,1724531494702,-816.93,0.00016164,2]
[335849403,1724531494716,-1347.74,0.00016164,2]
[335849404,1724531494731,-654.44,0.00016164,2]
[335849405,1724531494745,-1183.71,0.00016164,2]
[335849406,1724531494760,-497.66154331,0.00016164,2]
[335849407,1724531494775,-500.0,0.00016164,2]
[335849408,1724531494790,-646.95975205,0.00016164,2]
[335849409,1724531494805,-500.0,0.00016164,2]
[335849410,1724531494821,-500.0,0.00016164,2]
[335849411,1724531494836,-500.0,0.00016164,2]
[335849412,1724531494851,-500.0,0.00016164,2]
[335849413,1724531494867,-1399.1,0.00016164,2]
[335849414,1724531494882,-1258.48,0.00016164,2]
[335849415,1724531494897,-908.55,0.00016164,2]
[335849416,1724531494913,-669.53,0.00016164,2]
[335849417,1724531494928,-833.72,0.00016164,2]
[335849418,1724531494943,-675.35,0.00016164,2]
[335849419,1724531494957,-626.94,0.00016164,2]
[335849420,1724531494972,-1045.54,0.00016164,2]
[335849421,1724531494987,-707.88,0.00016164,2]
[335849422,1724531495000,-1304.4,0.00016164,2]
[335849423,1724531495016,-1291.63,0.00016164,2]
[335849424,1724531495029,-1138.3,0.00016164,2]
[335849425,1724531495046,-500.0,0.00016164,2]
[335849426,1724531495060,-622.87,0.00016164,2]
[335849427,1724531495075,-701.54,0.00016164,2]
[335849428,1724531495091,-1511.45,0.00016164,2]
[335849429,1724531495105,-1658.12,0.00016164,2]
[335849430,1724531495120,-842.01,0.00016164,2]
[335849431,1724531495135,-500.0,0.00016164,2]
[335849432,1724531495149,-500.0,0.00016164,2]
[335849433,1724531495164,-789.09,0.00016164,2]
[335849434,1724531495182,-615.1,0.00016164,2]
[335849435,1724531495196,-697.2,0.00016164,2]
[335849436,1724531495211,-500.0,0.00016164,2]
[335849437,1724531495225,-500.0,0.00016164,2]
[335849438,1724531495239,-805.35,0.00016164,2]
[335849439,1724531495255,-1362.32,0.00016164,2]
[335849440,1724531495271,-983.04,0.00016164,2]
[335849441,1724531495287,-624.92,0.00016164,2]
[335849442,1724531495303,-530.79,0.00016164,2]
[335849443,1724531495318,-1060.9,0.00016164,2]
[335849444,1724531495334,-189.45028075,0.00016164,2]
[335849445,1724531495349,-609.17,0.00016164,2]
[335849446,1724531495364,-569.95,0.00016164,2]
[335849447,1724531495379,-1647.52,0.00016164,2]
[335849448,1724531495394,-509.84,0.00016164,2]
[335849449,1724531495409,-500.0,0.00016164,2]
[335849450,1724531495425,-2067.06,0.00016164,2]
[335849451,1724531495439,-551.95,0.00016164,2]
[335849452,1724531495601,-2076.6,0.00016164,2]
[335849453,1724531495635,-733.55,0.00016164,2]
[335849454,1724531495645,-1212.03,0.00016164,2]
[335849455,1724531495654,-824.83,0.00016164,2]
[335849456,1724531495664,-541.05,0.00016164,2]
[335849457,1724531495674,-706.53,0.00016164,2]
[335849458,1724531495683,-1031.72,0.00016164,2]
[335849459,1724531495695,-500.0,0.00016164,2]
[335849460,1724531495706,-500.0,0.00016164,2]
[335849461,1724531495716,-821.42,0.00016164,2]
[335849462,1724531495727,-1269.14,0.00016164,2]
[335849463,1724531495737,-500.0,0.00016164,2]
[335849464,1724531495749,-550.91,0.00016164,2]
[335849465,1724531495759,-2330.5,0.00016164,2]
[335849466,1724531495769,-564.78,0.00016164,2]
[335849467,1724531495778,-500.0,0.00016164,2]
[335849468,1724531495788,-500.0,0.00016164,2]
[335849469,1724531495797,-500.0,0.00016164,2]
[335849470,1724531495806,-536.71,0.00016164,2]
[335849471,1724531495816,-2051.66,0.00016164,2]
[335849472,1724531495826,-500.0,0.00016164,2]
[335849473,1724531495835,-1362.21,0.00016164,2]
[335849474,1724531495845,-500.0,0.00016164,2]
[335849475,1724531495854,-5397.94,0.00016164,2]
[335849476,1724531495864,-6804.12,0.00016164,2]
[335849477,1724531495874,-648.45,0.00016164,2]
[335849478,1724531495883,-884.96,0.00016164,2]
[335849479,1724531495892,-686.18,0.00016164,2]
[335849480,1724531495902,-1785.1,0.00016164,2]
[335849481,1724531495911,-711.95,0.00016164,2]
[335849482,1724531495920,-3273.28,0.00016164,2]
[335849483,1724531495930,-1293.47,0.00016164,2]
[335849484,1724531495939,-1164.49,0.00016164,2]
[335849485,1724531495948,-3352.92,0.00016164,2]
[335849486,1724531495957,-500.0,0.00016164,2]
[335849487,1724531495966,-747.91,0.00016164,2]
[335849488,1724531495976,-730.3,0.00016164,2]
[335849489,1724531495985,-1003.19,0.00016164,2]
[335849490,1724531495994,-1036.67,0.00016164,2]
[335849491,1724531496005,-3007.21,0.00016164,2]
[335849492,1724531496014,-598.05,0.00016164,2]
[335849493,1724531496023,-1648.7,0.00016164,2]
[335849494,1724531496032,-500.0,0.00016164,2]
[335849495,1724531496043,-2248.02,0.00016164,2]
[335849496,1724531496054,-940.59,0.00016164,2]
[335849497,1724531496063,-896.98,0.00016164,2]
[335849498,1724531496076,-762.45,0.00016164,2]
[335849499,1724531496086,-613.35,0.00016164,2]
[335849500,1724531496096,-896.49,0.00016164,2]
[335849501,1724531496105,-7990.85,0.00016164,2]
[335849502,1724531496115,-500.0,0.00016164,2]
[335849503,1724531496125,-3087.13,0.00016164,2]
[335849504,1724531496134,-1632.06,0.00016164,2]
[335849505,1724531496143,-570.3,0.00016164,2]
[335849506,1724531496153,-3378.83,0.00016164,2]
[335849507,1724531496162,-963.5,0.00016164,2]
[335849508,1724531496171,-2636.69,0.00016164,2]
[335849509,1724531496180,-764.0,0.00016164,2]
[335849510,1724531496190,-500.0,0.00016164,2]
[335849511,1724531496198,-644.41,0.00016164,2]
[335849512,1724531496207,-1924.56,0.00016164,2]
[335849513,1724531496217,-5273.79,0.00016164,2]
[335849514,1724531496226,-896.55,0.00016164,2]
[335849515,1724531496235,-10892.31,0.00016164,2]
[335849516,1724531496244,-3022.35,0.00016164,2]
[335849517,1724531496254,-7921.53,0.00016164,2]
[335849518,1724531496264,-663.04,0.00016164,2]
[335849519,1724531496273,-500.0,0.00016164,2]
[335849520,1724531496283,-500.0,0.00016164,2]
[335849521,1724531496292,-775.53,0.00016164,2]
[335849522,1724531496301,-1062.57,0.00016164,2]
[335849523,1724531496310,-637.96,0.00016164,2]
[335849524,1724531496320,-670.81,0.00016164,2]
[335849525,1724531496330,-500.0,0.00016164,2]
[335849526,1724531496339,-1720.57,0.00016164,2]
[335849527,1724531496348,-660.87,0.00016164,2]
[335849528,1724531496357,-500.0,0.00016164,2]
[335849529,1724531496366,-802.38,0.00016164,2]
[335849530,1724531496375,-1839.52,0.00016164,2]
[335849531,1724531496384,-22051.78,0.00016164,2]
[335849532,1724531496393,-2124.46,0.00016164,2]
[335849533,1724531496402,-823.85,0.00016164,2]
[335849534,1724531496411,-823.68,0.00016164,2]
[335849535,1724531496420,-968.76,0.00016164,2]
[335849536,1724531496430,-2260.21,0.00016164,2]
[335849537,1724531496439,-4073.78,0.00016164,2]
[335849538,1724531496448,-500.0,0.00016164,2]
[335849539,1724531496457,-500.0,0.00016164,2]
[335849540,1724531496467,-805.16,0.00016164,2]
[335849541,1724531496479,-500.0,0.00016164,2]
[335849542,1724531496489,-728.77,0.00016164,2]
[335849543,1724531496502,-500.0,0.00016164,2]
[335849544,1724531496514,-500.0,0.00016164,2]
[335849545,1724531496525,-591.04,0.00016164,2]
[335849546,1724531496535,-9393.57,0.00016164,2]
[335849547,1724531496546,-3343.01,0.00016164,2]
[335849548,1724531496558,-1899.14,0.00016164,2]
[335849549,1724531496568,-1029.65,0.00016164,2]
[335849550,1724531496577,-721.66,0.00016164,2]
[335849551,1724531496589,-734.3,0.00016164,2]
[335849552,1724531496601,-1502.18,0.00016164,2]
[335849553,1724531496612,-2917.34,0.00016164,2]
[335849554,1724531496622,-1262.64,0.00016164,2]
[335849555,1724531496631,-1438.33,0.00016164,2]
[335849556,1724531496641,-3106.9,0.00016164,2]
[335849557,1724531496651,-14408.06,0.00016164,2]
[335849558,1724531496662,-500.0,0.00016164,2]
[335849559,1724531496671,-2712.11,0.00016164,2]
[335849560,1724531496680,-2193.8,0.00016164,2]
[335849561,1724531496690,-2815.63,0.00016164,2]
[335849562,1724531496700,-2259.87,0.00016164,2]
[335849563,1724531496709,-500.0,0.00016164,2]
[335849564,1724531496719,-627.85,0.00016164,2]
[335849565,1724531496728,-1129.92,0.00016164,2]
[335849566,1724531496737,-789.7,0.00016164,2]
[335849567,1724531496746,-500.0,0.00016164,2]
[335849568,1724531496756,-213.02222954,0.00016164,2]
[335849569,1724531496765,-2350.51,0.00016164,2]
[335849570,1724531496774,-741.25,0.00016164,2]
[335849571,1724531496784,-2327.67,0.00016164,2]
[335849572,1724531496793,-2773.88,0.00016164,2]
[335849573,1724531496803,-500.0,0.00016164,2]
[335849574,1724531496812,-1842.59,0.00016164,2]
[335849575,1724531496822,-4763.79,0.00016164,2]
[335849576,1724531496831,-500.0,0.00016164,2]
[335849577,1724531496840,-1819.59,0.00016164,2]
[335849578,1724531496851,-621.55,0.00016164,2]
[335849579,1724531496861,-3461.51,0.00016164,2]
[335849580,1724531496871,-1288.14,0.00016164,2]
[335849581,1724531496880,-807.08,0.00016164,2]
[335849582,1724531496890,-679.29,0.00016164,2]
[335849583,1724531496899,-7396.52,0.00016164,2]
[335849584,1724531496909,-814.15,0.00016164,2]
[335849585,1724531496918,-20361.09,0.00016164,2]
[335849586,1724531496928,-904.12,0.00016164,2]
[335849587,1724531496937,-2226.72,0.00016164,2]
[335849588,1724531496946,-11201.75,0.00016164,2]
[335849589,1724531496956,-10180.43,0.00016164,2]
[335849590,1724531496966,-1538.63,0.00016164,2]
[335849591,1724531496975,-223.64640627,0.00016164,2]
[335849592,1724531496985,-718.11,0.00016164,2]
[335849593,1724531496994,-699.61,0.00016164,2]
[335849594,1724531497003,-2896.04,0.00016164,2]
[335849595,1724531497013,-3039.26,0.00016164,2]
[335849596,1724531497023,-500.0,0.00016164,2]
[335849597,1724531497033,-2034.56,0.00016164,2]
[335849598,1724531497044,-685.31,0.00016164,2]
[335849599,1724531497054,-500.0,0.00016164,2]
[335849600,1724531497064,-1232.81,0.00016164,2]
[335849601,1724531497086,-500.0,0.00016164,2]
[335849602,1724531497130,-500.0,0.00016164,2]
[335849603,1724531497139,-1832.98,0.00016164,2]
[335849604,1724531497150,-941.9,0.00016164,2]
[335849605,1724531497159,-1070.08,0.00016164,2]
[335849606,1724531497169,-11259.44,0.00016164,2]
[335849607,1724531497178,-500.0,0.00016164,2]
[335849608,1724531497188,-4136.04,0.00016164,2]
[335849609,1724531497197,-3000.0,0.0001617,2]
[335849610,1724531497206,-249.44067411,0.00016173,2]
[335849611,1724531497215,-3000.0,0.0001618,2]
[335849612,1724531497225,-3000.0,0.0001619,2]
[335849613,1724531497234,-3000.0,0.000162,2]
[335849614,1724531497243,-3000.0,0.0001621,2]
[335849615,1724531497253,-3000.0,0.0001622,2]
[335849616,1724531497263,-549.01489996,0.00016224,2]
[335849617,1724531497273,-3000.0,0.0001623,2]
[335849618,1724531497283,-3000.0,0.0001624,2]
[335849619,1724531497292,-3000.0,0.0001625,2]
[335849620,1724531497302,-3000.0,0.0001626,2]
[335849621,1724531497311,-3000.0,0.0001627,2]
[335849622,1724531497332,-3000.0,0.0001628,2]
[335849623,1724531497342,-3000.0,0.0001629,2]
[335849624,1724531497351,-3000.0,0.000163,2]
[335849625,1724531497361,-3000.0,0.0001631,2]
[335849626,1724531497371,-3000.0,0.0001632,2]
[335849627,1724531497381,-3000.0,0.0001633,2]
[335849628,1724531497390,-3000.0,0.0001634,2]
[335849629,1724531497400,-3000.0,0.0001635,2]
[335849630,1724531497409,-3000.0,0.0001636,2]
[335849631,1724531497419,-3000.0,0.0001637,2]
[335849632,1724531497430,-3000.0,0.0001638,2]
[335849633,1724531497438,-3000.0,0.0001639,2]
[335849634,1724531497447,-1326.0,0.000164,2]
[335849635,1724531497457,-3000.0,0.000164,2]
[335849636,1724531497467,-3000.0,0.0001641,2]
[335849637,1724531497479,-3000.0,0.0001642,2]
[335849638,1724531497491,-3000.0,0.0001643,2]
[335849639,1724531497503,-813.56,0.00016438,2]
[335849640,1724531497514,-500.0,0.00016438,2]
[335849641,1724531497526,-500.0,0.00016438,2]
[335849642,1724531497648,-734.4,0.00016438,2]
[335849643,1724531497659,-603.04,0.00016438,2]
[335849644,1724531497669,-622.05,0.00016438,2]
[335849645,1724531497678,-500.0,0.00016438,2]
[335849646,1724531497688,-505.50323712,0.00016438,2]
[335849647,1724531497698,-500.0,0.00016438,2]
[335849648,1724531497708,-500.0,0.00016438,2]
[335849649,1724531497718,-519.65,0.00016438,2]
[335849650,1724531497730,-713.04,0.00016438,2]
[335849651,1724531497740,-500.0,0.00016438,2]
[335849652,1724531497750,-530.24,0.00016438,2]
[335849653,1724531497762,-602.6,0.00016438,2]
[335849654,1724531497773,-310.12,0.00016438,2]
[335849655,1724531497783,-310.12,0.00016438,2]
[335849656,1724531497795,-310.12,0.00016438,2]
[335849657,1724531497805,-310.12,0.00016438,2]
[335849658,1724531497817,-310.12,0.00016438,2]
[335849659,1724531497829,-310.12,0.00016438,2]
[335849660,1724531497839,-310.12,0.00016438,2]
[335849661,1724531497850,-310.12,0.00016438,2]
[335849662,1724531497860,-310.12,0.00016438,2]
[335849663,1724531497870,-310.12,0.00016438,2]
[335849664,1724531497879,-310.12,0.00016438,2]
[335849665,1724531497889,-500.0,0.00016438,2]
[335849666,1724531497899,-784.11,0.00016438,2]
[335849667,1724531497909,-500.0,0.00016438,2]
[335849668,1724531497921,-500.0,0.00016438,2]
[335849669,1724531497931,-500.0,0.00016438,2]
[335849670,1724531497942,-492.38506093,0.00016438,2]
[335849671,1724531497952,-443.86754417,0.00016438,2]
[335849672,1724531497963,-563.59,0.00016438,2]
[335849673,1724531497974,-891.68,0.00016438,2]
[335849674,1724531497984,-805.77,0.00016438,2]
[335849675,1724531497994,-569.79,0.00016438,2]
[335849676,1724531498003,-523.9,0.00016438,2]
[335849677,1724531498013,-562.45,0.00016438,2]
[335849678,1724531498023,-962.65,0.00016438,2]
[335849679,1724531498032,-559.36,0.00016438,2]
[335849680,1724531498044,-586.18,0.00016438,2]
[335849681,1724531498055,-807.15,0.00016438,2]
[335849682,1724531498067,-583.94,0.00016438,2]
[335849683,1724531498077,-533.88,0.00016438,2]
[335849684,1724531498087,-760.25,0.00016438,2]
[335849685,1724531498097,-583.15,0.00016438,2]
[335849686,1724531498106,-863.95,0.00016438,2]
[335849687,1724531498115,-520.2,0.00016438,2]
[335849688,1724531498129,-500.0,0.00016438,2]
[335849689,1724531498139,-850.08,0.00016438,2]
[335849690,1724531498148,-1365.0,0.00016438,2]
[335849691,1724531498159,-752.47,0.00016438,2]
[335849692,1724531498170,-500.0,0.00016438,2]
[335849693,1724531498181,-500.0,0.00016438,2]
[335849694,1724531498193,-1109.59,0.00016438,2]
[335849695,1724531498203,-500.0,0.00016438,2]
[335849696,1724531498211,-706.93,0.00016438,2]
[335849697,1724531498222,-500.0,0.00016438,2]
[335849698,1724531498234,-576.76,0.00016438,2]
[335849699,1724531498245,-823.53,0.00016438,2]
[335849700,1724531498255,-500.0,0.00016438,2]
[335849701,1724531498267,-500.0,0.00016438,2]
[335849702,1724531498278,-500.0,0.00016438,2]
[335849703,1724531498290,-526.81,0.00016438,2]
[335849704,1724531498299,-500.0,0.00016438,2]
[335849705,1724531498309,-500.0,0.00016438,2]
[335849706,1724531498320,-500.0,0.00016438,2]
[335849707,1724531498331,-430.0,0.00016438,2]
[335849708,1724531498342,-677.32,0.00016438,2]
[335849709,1724531498351,-500.0,0.00016438,2]
[335849710,1724531498361,-500.0,0.00016438,2]
[335849711,1724531498370,-500.0,0.00016438,2]
[335849712,1724531498380,-929.47,0.00016438,2]
[335849713,1724531498389,-500.0,0.00016438,2]
[335849714,1724531498399,-748.15,0.00016438,2]
[335849715,1724531498409,-534.28,0.00016438,2]
[335849716,1724531498418,-500.0,0.00016438,2]
[335849717,1724531498428,-500.0,0.00016438,2]
[335849718,1724531498437,-774.94,0.00016438,2]
[335849719,1724531498447,-1168.85,0.00016438,2]